[Event "Stockholm Elo Challenge 2019"]
[Site "Stockholm"]
[Date "2019.05.30"]
[Round "2.6"]
[White "Bergqvist, Gustav"]
[Black "Grahn, Vidar"]
[Result "1-0"]
[ECO "D05"]
[WhiteElo "1751"]
[BlackElo "1891"]
[Annotator "NA"]
[PlyCount "41"]
[EventDate "2019.05.29"]
[EventType "swiss"]
[EventCountry "SWE"]
[SourceTitle "playchess.com"]
[Source "ChessBase"]
[SourceQuality "1"]
[TimeControl "40/5400+30:1800+30"]

1. d4 d5 2. Nf3 Nf6 3. e3 e6 4. Bd3 c5 5. b3 Be7 6. Bb2 O-O 7. O-O b6 8. Nbd2 Bb7 9. Ne5 Nfd7 10. f4 f6 11. Qh5 f5 12. Ndf3 Nf6 13. Qh3 Ne4 14. Rae1 Rf6 15. g4 g6 16. Bxe4 dxe4 17. Ng5 h5 18. gxh5 Bd6 19. hxg6 Qe7 20. Nef7 Qc7 21. Qh8# 1-0

[Event "Stockholm Elo Challenge 2019"]
[Site "Stockholm"]
[Date "2019.05.30"]
[Round "3.1"]
[White "Karlsson, Lars"]
[Black "Jansson, Gilbert"]
[Result "1-0"]
[ECO "A30"]
[WhiteElo "2448"]
[BlackElo "1892"]
[Annotator "ChessBase"]
[PlyCount "61"]
[EventDate "2019.05.29"]
[EventType "swiss"]
[EventCountry "SWE"]
[SourceTitle "playchess.com"]
[Source "ChessBase"]
[SourceQuality "1"]
[TimeControl "40/5400+30:1800+30"]

1. c4 {[%emt 0:00:00]} c5 {[%emt 0:00:00]} 2. g3 {[%emt 0:00:00]} Nf6 {[%emt 0:00:13]} 3. Bg2 {[%emt 0:00:00]} d6 {[%emt 0:00:47]} 4. Nc3 {[%emt 0:00:00]} a6 {[%emt 0:00:57]} 5. e3 {[%emt 0:00:00]} Qc7 {[%emt 0:00:37]} 6. Nge2 {[%emt 0:00:09]} Nc6 {[%emt 0:01:11]} 7. h3 {[%emt 0:01:10]} e6 {[%emt 0:01:04]} 8. d4 {[%emt 0:00:15]} cxd4 {[%emt 0:01:11]} 9. exd4 {[%emt 0:00:07]} Be7 {[%emt 0:01:48]} 10. O-O {[%emt 0:00:43]} O-O {[%emt 0:00:32]} 11. Be3 {[%emt 0:00:12]} Bd7 {[%emt 0:04:00]} 12. Rc1 {[%emt 0:00:49]} Rac8 {[%emt 0:11:45]} 13. d5 {[%emt 0:05:34]} Ne5 {[%emt 0:01:21]} 14. b3 {[%emt 0:01:36]} Qb8 {[%emt 0:04:35]} 15. f4 {[%emt 0:08:10]} Ng6 {[%emt 0:00:20]} 16. dxe6 {[%emt 0:11:25]} fxe6 {[%emt 0:01:19]} 17. Nd4 {[%emt 0:06:42]} e5 {[%emt 0:12:18]} 18. Nde2 {[%emt 0:04:20]} Bc6 {[%emt 0:11:37]} 19. Nd5 {[%emt 0:05:50]} Nxd5 {[%emt 0:01:05]} 20. Bxd5+ {[%emt 0:00:10]} Bxd5 {[%emt 0:02:01]} 21. Qxd5+ {[%emt 0:00:05]} Rf7 {[%emt 0:00:48]} 22. f5 {[%emt 0:02:38]} Nh8 {[%emt 0:00:26]} 23. Nc3 {[%emt 0:01:06]} Rc6 {[%emt 0:02:48]} 24. Ne4 {[%emt 0:01:41]} Qd8 {[%emt 0:01:45]} 25. Rcd1 {[%emt 0:00:51]} Kf8 {[%emt 0:08:52]} 26. c5 {[%emt 0:00:45]} h6 {[%emt 0:03:19]} 27. cxd6 {[%emt 0:06:28]} Bf6 {[%emt 0:00:43]} 28. d7 {[%emt 0:00:09]} Rc7 {[%emt 0:11:18]} 29. Bc5+ {[%emt 0:10:07]} Kg8 {[%emt 0:01:15]} 30. Nxf6+ {[%emt 0:00:53]} gxf6 {[%emt 0:00:20]} 31. Be7 {[%emt 0:00:27]} 1-0

[Event "Stockholm Elo Challenge 2019"]
[Site "Stockholm"]
[Date "2019.05.30"]
[Round "3.2"]
[White "Willinger, Tim"]
[Black "Bergqvist, Gustav"]
[Result "1/2-1/2"]
[ECO "D35"]
[WhiteElo "2073"]
[BlackElo "1751"]
[Annotator "NA"]
[PlyCount "75"]
[EventDate "2019.05.29"]
[EventType "swiss"]
[EventCountry "SWE"]
[SourceTitle "playchess.com"]
[Source "ChessBase"]
[SourceQuality "1"]
[TimeControl "40/5400+30:1800+30"]

1. d4 {[%emt 0:00:00]} d5 {[%emt 0:00:00]} 2. c4 {[%emt 0:00:00]} e6 {[%emt 0:00:00]} 3. Nc3 {[%emt 0:00:00]} Nf6 {[%emt 0:00:00]} 4. cxd5 {[%emt 0:00:03]} exd5 {[%emt 0:00:36]} 5. Bg5 {[%emt 0:00:08]} c6 {[%emt 0:01:07]} 6. e3 {[%emt 0:00:22]} Bb4 {[%emt 0:00:54]} 7. Bd3 {[%emt 0:01:21]} O-O {[%emt 0:01:16]} 8. Qc2 {[%emt 0:00:52]} h6 {[%emt 0:02:04]} 9. Bh4 {[%emt 0:00:18]} Be6 {[%emt 0:01:16]} 10. Nge2 {[%emt 0:01:34]} Re8 {[%emt 0:04:24]} 11. O-O {[%emt 0:01:13]} Bd6 {[%emt 0:01:28]} 12. Kh1 {[%emt 0:03:58]} Nbd7 {[%emt 0:03:28]} 13. f3 {[%emt 0:04:04]} Qc7 {[%emt 0:03:19]} 14. Bg3 {[%emt 0:03:54]} Bxg3 {[%emt 0:04:46]} 15. Nxg3 {[%emt 0:00:58]} Nb6 {[%emt 0:02:48]} 16. Rad1 {[%emt 0:03:55]} Rad8 {[%emt 0:04:03]} 17. e4 {[%emt 0:09:40]} dxe4 {[%emt 0:02:03]} 18. fxe4 {[%emt 0:01:40]} Ng4 {[%emt 0:02:21]} 19. Qc1 {[%emt 0:02:17]} Nc4 {[%emt 0:04:01]} 20. Bxc4 {[%emt 0:01:43]} Bxc4 {[%emt 0:00:20]} 21. Rf4 {[%emt 0:02:11]} Be6 {[%emt 0:04:13]} 22. e5 {[%emt 0:10:21]} f6 {[%emt 0:03:39]} 23. exf6 {[%emt 0:05:00]} Nxf6 {[%emt 0:01:23]} 24. Nf5 {[%emt 0:17:52]} Bxf5 {[%emt 0:02:34]} 25. Rxf5 {[%emt 0:00:10]} Ng4 {[%emt 0:01:01]} 26. Qf4 {[%emt 0:04:37]} Qxf4 {[%emt 0:00:54]} 27. Rxf4 {[%emt 0:00:01]} Ne3 {[%emt 0:00:58]} 28. Re1 {[%emt 0:08:19]} Nd5 {[%emt 0:00:26]} 29. Rfe4 {[%emt 0:01:18]} Nf6 {[%emt 0:04:03]} 30. Rxe8+ {[%emt 0:01:03]} Rxe8 {[%emt 0:00:33]} 31. Rxe8+ {[%emt 0:00:15]} Nxe8 {[%emt 0:00:02]} 32. d5 {[%emt 0:00:17]} cxd5 {[%emt 0:01:19]} 33. Nxd5 {[%emt 0:00:01]} Kf7 {[%emt 0:00:23]} 34. Kg1 {[%emt 0:00:20]} Ke6 {[%emt 0:00:28]} 35. Nc3 {[%emt 0:00:05]} Ke5 {[%emt 0:01:25]} 36. Kf2 {[%emt 0:00:19]} Nd6 {[%emt 0:00:38]} 37. Ke2 {[%emt 0:02:28]} Nc4 38. Nd1 1/2-1/2

[Event "Stockholm Elo Challenge 2019"]
[Site "Stockholm"]
[Date "2019.05.30"]
[Round "3.3"]
[White "Sjostrand, Joel"]
[Black "Pettersson, Alexander"]
[Result "0-1"]
[ECO "A14"]
[WhiteElo "1977"]
[BlackElo "2045"]
[Annotator "NA RC"]
[PlyCount "100"]
[EventDate "2019.05.29"]
[EventType "swiss"]
[EventCountry "SWE"]
[SourceTitle "playchess.com"]
[Source "ChessBase"]
[SourceQuality "1"]
[TimeControl "40/5400+30:1800+30"]

1. c4 {[%emt 0:00:00]} e6 {[%emt 0:09:36]} 2. g3 {[%emt 0:00:00]} d5 {[%emt 0:00:19]} 3. Bg2 {[%emt 0:00:00]} Nf6 {[%emt 0:00:09]} 4. Nf3 {[%emt 0:00:00]} Be7 {[%emt 0:00:22]} 5. O-O {[%emt 0:00:00]} O-O {[%emt 0:00:53]} 6. b3 {[%emt 0:00:07]} c6 {[%emt 0:00:58]} 7. Bb2 {[%emt 0:00:06]} b6 {[%emt 0:00:35]} 8. d3 {[%emt 0:00:08]} Bb7 {[%emt 0:00:24]} 9. Nbd2 {[%emt 0:00:06] A14: English Opening: 1...e6 with b3 by White} c5 {[%emt 0:02:41]} (9... dxc4 10. bxc4 c5 11. Bc3 Nc6 12. Qc2 Qc7 13. Qb2 Rfd8 14. Rfb1 Ne8 15. Ne4 h6 16. a4 f5 {1-0 (46) Pantsulaia,L (2607)-Atabayev,M (2492) Doha 2016}) 10. cxd5 {[%emt 0:07:03]} Bxd5 {[%emt 0:08:28]} 11. Nc4 {[%emt 0:05:03]} Nbd7 {[%emt 0:03:02]} 12. Qc2 {[%emt 0:04:19]} b5 $146 {[%emt 0:07:29]} ({Predecessor:} 12... Rc8) 13. Ne3 {[%emt 0:00:23]} Bb7 {[%emt 0:02:03]} 14. a4 {[%emt 0:03:05]} a6 {[%emt 0:01:17]} 15. axb5 {[%emt 0:01:16]} axb5 {[%emt 0:00:07]} 16. Rxa8 {[%emt 0:00:17]} Bxa8 {[%emt 0:00:59]} 17. Ra1 {[%emt 0:00:42]} Qb6 {[%emt 0:01:46]} 18. Qc3 {[%emt 0:15:32]} Bb7 {[%emt 0:07:38]} 19. Ng4 {[%emt 0:07:58]} Ra8 {[%emt 0:04:51]} 20. Rxa8+ {[%emt 0:02:43]} Bxa8 {[%emt 0:00:18]} 21. Nxf6+ Nxf6 22. Ne5 {[%emt 0:06:08]} Bxg2 {[%emt 0:06:53]} 23. Kxg2 {[%emt 0:00:03]} Qb7+ {[%emt 0:05:08]} 24. e4 {[%emt 0:05:39]} Qa8 {[%emt 0:07:17]} 25. Nd7 {[%emt 0:06:36]} Qa7 {[%emt 0:07:45]} 26. Nxf6+ {[%emt 0:08:51]} Bxf6 {[%emt 0:00:07]} 27. Qc1 {[%emt 0:01:21]} Bxb2 {[%emt 0:01:59]} 28. Qxb2 {[%emt 0:00:05]} f6 {[%emt 0:01:00]} 29. b4 {[%emt 0:01:47]} Kf7 {[%emt 0:01:24]} 30. Qc3 {[%emt 0:00:29]} cxb4 {[%emt 0:00:25]} 31. Qxb4 {[%emt 0:00:06]} Qa4 {[%emt 0:00:34]} 32. Qd6 {[%emt 0:14:20]} b4 {[%emt 0:01:14]} 33. h4 {[%emt 0:00:04]} Qb5 {[%emt 0:05:45]} 34. g4 {[%emt 0:00:43]} Qb7 {[%emt 0:02:22]} 35. Qd4 {[%emt 0:02:47]} b3 {[%emt 0:00:15]} 36. Qb2 {[%emt 0:00:02]} Qb4 {[%emt 0:00:47]} 37. h5 {[%emt 0:01:28] [#]} (37. Kf3 $17 {was necessary.}) 37... Qb5 $1 {[%emt 0:04:42]} 38. Qb1 {[%emt 0:06:03]} b2 {[%emt 0:00:14]} 39. Kf3 {[%emt 0:00:23]} Qb3 {[%emt 0:02:28]} 40. Ke2 {[%emt 0:00:49]} Ke7 {[%emt 0:03:31]} 41. Kd2 {[%emt 0:32:01]} Kd6 {[%emt 0:31:24]} 42. f4 {[%emt 0:00:31]} e5 {[%emt 0:00:00]} 43. g5 {[%emt 0:00:00]} (43. fxe5+ $142 Kxe5 44. Ke3) 43... fxg5 {[%emt 0:00:00]} 44. fxe5+ {[%emt 0:00:00]} Kxe5 {[%emt 0:00:00]} 45. Ke2 {[%emt 0:00:00]} g4 {[%emt 0:00:00]} 46. Kf2 {[%emt 0:00:00]} Kd4 {[%emt 0:00:00]} 47. Ke2 {[%emt 0:00:00]} Kc5 {[%emt 0:00:00]} 48. e5 {[%emt 0:00:00]} Kb4 {[%emt 0:00:00]} 49. d4 {[%emt 0:00:00]} Qf3+ {[%emt 0:01:01]} 50. Kd2 {[%emt 0:00:00]} Qf2+ {[%emt 0:00:20]} 0-1

[Event "Stockholm Elo Challenge 2019"]
[Site "Stockholm"]
[Date "2019.05.30"]
[Round "3.4"]
[White "Storskog, Thomas"]
[Black "Tran, Alva Ling"]
[Result "0-1"]
[ECO "A00"]
[WhiteElo "1790"]
[BlackElo "1616"]
[Annotator "NA RC"]
[PlyCount "140"]
[EventDate "2019.05.29"]
[EventType "swiss"]
[EventCountry "SWE"]
[SourceTitle "playchess.com"]
[Source "ChessBase"]
[SourceQuality "1"]
[TimeControl "40/5400+30:1800+30"]

1. Nc3 {[%emt 0:00:00]} d5 {[%emt 0:00:27]} 2. e4 {[%emt 0:00:00]} dxe4 {[%emt 0:01:15]} 3. Nxe4 {[%emt 0:00:00]} e5 {[%emt 0:00:17]} 4. Nf3 {[%emt 0:00:06]} Qd5 {[%emt 0:02:22]} 5. Qe2 {[%emt 0:05:02]} Nc6 {[%emt 0:03:44]} 6. Nc3 {[%emt 0:11:27]} Qe6 {[%emt 0:07:00]} 7. Nb5 {[%emt 0:01:01]} Qe7 {[%emt 0:02:24]} 8. d3 {[%emt 0:06:36]} Nf6 {[%emt 0:04:18]} 9. a3 {[%emt 0:00:45]} a6 {[%emt 0:07:56]} 10. Nc3 {[%emt 0:00:09]} Bg4 {[%emt 0:00:29]} 11. Bg5 {[%emt 0:00:32]} O-O-O {[%emt 0:04:37]} 12. O-O-O {[%emt 0:13:59]} Nd4 {[%emt 0:10:13]} 13. Qe3 {[%emt 0:00:19]} Bxf3 {[%emt 0:05:36]} 14. gxf3 {[%emt 0:00:23]} Qc5 {[%emt 0:02:49]} 15. Bxf6 {[%emt 0:02:39]} gxf6 {[%emt 0:01:32]} 16. Bh3+ {[%emt 0:02:13]} Kb8 {[%emt 0:00:19]} 17. Qe4 {[%emt 0:01:23]} Qa5 {[%emt 0:12:10]} 18. Ne2 {[%emt 0:11:31]} Nb5 {[%emt 0:09:09]} 19. a4 {[%emt 0:04:28]} Nd4 {[%emt 0:02:56]} 20. Nc3 {[%emt 0:14:00]} Bb4 {[%emt 0:02:27]} 21. Kd2 {[%emt 0:00:28]} Qxa4 {[%emt 0:01:13]} 22. Rc1 {[%emt 0:00:09]} Qa2 {[%emt 0:02:48]} 23. Kd1 {[%emt 0:04:18]} Qxb2 {[%emt 0:02:51]} 24. Ne2 {[%emt 0:00:56]} Nxe2 {[%emt 0:01:58]} 25. Kxe2 {[%emt 0:00:21]} Qc3 {[%emt 0:01:05]} 26. Rhd1 {[%emt 0:00:18]} Ba3 {[%emt 0:01:59]} 27. Rb1 {[%emt 0:00:30]} Qxc2+ {[%emt 0:02:17]} 28. Kf1 {[%emt 0:00:07]} b6 {[%emt 0:00:24]} 29. Bg2 {[%emt 0:01:12]} Bc5 {[%emt 0:00:58]} 30. Qh4 {[%emt 0:01:43]} Rhg8 {[%emt 0:02:37]} 31. Rbc1 {[%emt 0:00:16]} Qb2 {[%emt 0:00:25]} 32. Rxc5 {[%emt 0:01:47]} bxc5 {[%emt 0:01:04]} 33. Qe4 {[%emt 0:00:27]} Qc2 {[%emt 0:02:13]} 34. Qe1 {[%emt 0:01:31]} Rd6 {[%emt 0:01:22]} 35. Rb1+ {[%emt 0:01:23]} Rb6 {[%emt 0:00:28]} 36. Rd1 {[%emt 0:00:48]} Qa4 {[%emt 0:01:02]} 37. d4 {[%emt 0:03:20]} Qc4+ {[%emt 0:00:28]} 38. Kg1 {[%emt 0:00:07]} cxd4 {[%emt 0:01:05]} 39. Qe4 {[%emt 0:00:04]} Qa4 {[%emt 0:00:37]} 40. Rc1 {[%emt 0:00:44]} Rg7 {[%emt 0:00:33]} 41. f4 {[%emt 0:30:22]} Rxg2+ {[%emt 0:02:58]} 42. Kxg2 {[%emt 0:00:00]} Qa5 {[%emt 0:05:35]} 43. Qxh7 {[%emt 0:00:00]} Qd2 {[%emt 0:01:33]} 44. Rb1 {[%emt 0:00:00]} Ka7 {[%emt 0:02:26]} 45. Rxb6 {[%emt 0:00:00]} Kxb6 {[%emt 0:00:23]} 46. Qxf7 {[%emt 0:00:00]} Qxf4 {[%emt 0:00:46]} 47. Qb3+ {[%emt 0:00:00]} Ka7 {[%emt 0:00:36]} 48. Qc4 {[%emt 0:00:00]} Qe4+ {[%emt 0:00:37]} 49. Kg1 {[%emt 0:00:00]} Qb1+ {[%emt 0:00:56]} 50. Kg2 {[%emt 0:00:00]} Qb6 {[%emt 0:01:06]} 51. h4 {[%emt 0:00:00]} f5 {[%emt 0:00:55]} 52. h5 {[%emt 0:00:00]} e4 {[%emt 0:03:25]} 53. Qd5 {[%emt 0:00:00]} d3 {[%emt 0:02:01]} 54. Qd8 {[%emt 0:00:00]} f4 {[%emt 0:04:10]} 55. h6 {[%emt 0:00:00]} f3+ {[%emt 0:06:26]} 56. Kg3 {[%emt 0:00:00]} Qg6+ {[%emt 0:01:08]} 57. Kf4 {[%emt 0:00:00]} Qxh6+ {[%emt 0:00:32]} 58. Kxe4 {[%emt 0:00:00]} Qc6+ {[%emt 0:00:19]} 59. Ke3 {[%emt 0:00:00]} Qc3 {[%emt 0:00:30]} 60. Kxf3 {[%emt 0:00:00]} d2+ {[%emt 0:00:50]} 61. Ke2 {[%emt 0:00:00]} a5 {[%emt 0:00:25]} 62. Qxd2 {[%emt 0:00:00]} Qxd2+ {[%emt 0:01:38]} 63. Kxd2 {[%emt 0:00:00]} Kb6 {[%emt 0:00:03]} 64. Kc3 {[%emt 0:00:00]} c5 {[%emt 0:00:36]} 65. Kb3 {[%emt 0:00:00]} Kc6 {[%emt 0:00:17]} 66. Kc4 {[%emt 0:00:00]} a4 {[%emt 0:00:24]} 67. f4 {[%emt 0:00:00]} Kd6 {[%emt 0:00:09]} 68. Kc3 {[%emt 0:00:00]} Ke6 {[%emt 0:00:34]} 69. Kc4 {[%emt 0:00:00]} Kf5 {[%emt 0:00:15]} 70. Kxc5 {[%emt 0:00:00]} a3 {[%emt 0:00:13]} 0-1

[Event "Stockholm Elo Challenge 2019"]
[Site "Stockholm"]
[Date "2019.05.30"]
[Round "3.6"]
[White "Johansson, Christer"]
[Black "Korning, Peter"]
[Result "0-1"]
[ECO "E63"]
[WhiteElo "1752"]
[BlackElo "1966"]
[Annotator "NA"]
[PlyCount "74"]
[EventDate "2019.05.29"]
[EventType "swiss"]
[EventCountry "SWE"]
[SourceTitle "playchess.com"]
[Source "ChessBase"]
[SourceQuality "1"]
[TimeControl "40/5400+30:1800+30"]

1. d4 g6 2. Nf3 Bg7 3. g3 Nf6 4. Bg2 O-O 5. O-O d6 6. c4 Nc6 7. Nc3 a6 8. Bg5 h6 9. Bxf6 Bxf6 10. Nd5 Bg7 11. h3 Rb8 12. Rc1 Bd7 13. e4 e6 14. Ne3 e5 15. dxe5 dxe5 16. Qd2 Nd4 17. Rfd1 Bxh3 18. Nxd4 Bxg2 19. Kxg2 exd4 20. Nd5 c6 21. Nb4 Re8 22. f3 Qa5 23. a3 Rbd8 24. c5 Qc7 25. Rc4 f5 26. Qd3 fxe4 27. fxe4 Qe5 28. Re1 Rf8 29. Rc2 Rd7 30. Qb3+ Kh7 31. Nd3 Qg5 32. Rf2 Rxf2+ 33. Nxf2 Qxc5 34. Nd3 Qg5 35. Re2 h5 36. e5 h4 37. Nc5 d3 0-1

[Event "Stockholm Elo Challenge 2019"]
[Site "Stockholm"]
[Date "2019.05.31"]
[Round "4.1"]
[White "Pettersson, Alexander"]
[Black "Karlsson, Lars"]
[Result "0-1"]
[ECO "A42"]
[WhiteElo "2045"]
[BlackElo "2448"]
[Annotator "ChessBase"]
[PlyCount "98"]
[EventDate "2019.05.29"]
[EventType "swiss"]
[EventCountry "SWE"]
[SourceTitle "playchess.com"]
[Source "ChessBase"]
[SourceQuality "1"]
[TimeControl "40/5400+30:1800+30"]

1. d4 {[%emt 0:04:43]} g6 {[%emt 0:00:34]} 2. c4 {[%emt 0:00:25]} Bg7 {[%emt 0:00:02]} 3. Nc3 {[%emt 0:00:15]} d6 {[%emt 0:00:05]} 4. e4 {[%emt 0:00:23]} Nc6 {[%emt 0:00:10]} 5. Be3 {[%emt 0:00:27]} e5 {[%emt 0:00:08]} 6. d5 {[%emt 0:00:29]} Nd4 {[%emt 0:00:21]} 7. Nge2 {[%emt 0:00:44]} Nxe2 {[%emt 0:02:00]} 8. Bxe2 {[%emt 0:00:19]} f5 {[%emt 0:00:02]} 9. exf5 {[%emt 0:01:17]} gxf5 {[%emt 0:00:03]} 10. f4 {[%emt 0:04:19]} e4 {[%emt 0:00:58]} 11. Bh5+ {[%emt 0:06:28]} Kf8 {[%emt 0:00:56]} 12. Bd4 {[%emt 0:07:21]} Bxd4 {[%emt 0:07:41]} 13. Qxd4 {[%emt 0:00:21]} Qf6 {[%emt 0:00:03]} 14. O-O-O {[%emt 0:03:00]} Qxd4 {[%emt 0:00:34]} 15. Rxd4 {[%emt 0:00:04]} Nf6 {[%emt 0:00:12]} 16. Be2 {[%emt 0:00:39]} Rg8 {[%emt 0:01:55]} 17. Rg1 {[%emt 0:02:07]} Bd7 {[%emt 0:00:44]} 18. Kd2 {[%emt 0:06:42]} Ke7 {[%emt 0:00:56]} 19. Ke3 {[%emt 0:00:35]} a6 {[%emt 0:01:00]} 20. Rd2 {[%emt 0:06:15]} c5 {[%emt 0:03:36]} 21. dxc6 {[%emt 0:06:05]} Bxc6 {[%emt 0:06:16]} 22. g3 {[%emt 0:06:06]} h5 {[%emt 0:05:25]} 23. h3 {[%emt 0:01:11]} Rg6 {[%emt 0:04:28]} 24. Bd1 {[%emt 0:01:14]} Rc8 {[%emt 0:13:03]} 25. Rdg2 {[%emt 0:06:40]} Bd7 {[%emt 0:04:24]} 26. Be2 {[%emt 0:03:47]} Rcg8 {[%emt 0:10:33]} 27. Kf2 {[%emt 0:10:46]} Bc6 {[%emt 0:07:00]} 28. Ke3 {[%emt 0:00:02]} b5 {[%emt 0:01:31]} 29. cxb5 {[%emt 0:04:23]} axb5 {[%emt 0:02:14]} 30. a3 {[%emt 0:00:16]} Bd7 {[%emt 0:02:49]} 31. Bf1 {[%emt 0:02:26]} Rb8 {[%emt 0:01:38]} 32. Na2 {[%emt 0:01:57]} Nd5+ {[%emt 0:09:43]} 33. Kd4 {[%emt 0:00:01]} Be6 {[%emt 0:00:07]} 34. Nc3 {[%emt 0:08:07]} Nxc3 {[%emt 0:00:14]} 35. bxc3 {[%emt 0:00:55]} Rgg8 {[%emt 0:01:00]} 36. Be2 {[%emt 0:03:46]} Rgc8 {[%emt 0:01:33]} 37. Rb1 {[%emt 0:00:40]} Rc5 {[%emt 0:04:59]} 38. Rgg1 {[%emt 0:02:15]} Bc4 {[%emt 0:00:49]} 39. Bxh5 {[%emt 0:01:24]} Rd5+ {[%emt 0:00:24]} 40. Ke3 {[%emt 0:00:09]} Rd3+ {[%emt 0:00:04]} 41. Kf2 {[%emt 0:30:42]} Rxc3 {[%emt 0:35:25]} 42. Rgc1 {[%emt 0:00:00]} Rxc1 {[%emt 0:00:00]} 43. Rxc1 {[%emt 0:00:00]} Ra8 {[%emt 0:00:00]} 44. Rc3 {[%emt 0:00:00]} d5 {[%emt 0:00:00]} 45. Ke3 {[%emt 0:00:00]} Kd6 {[%emt 0:00:00]} 46. Kd4 {[%emt 0:00:00]} Ra4 {[%emt 0:00:00]} 47. Ke3 {[%emt 0:00:00]} Kc5 {[%emt 0:00:00]} 48. Kd2 {[%emt 0:00:00]} d4 {[%emt 0:00:00]} 49. Rc1 {[%emt 0:00:00]} Rxa3 {[%emt 0:00:00]} 0-1

[Event "Stockholm Elo Challenge 2019"]
[Site "Stockholm"]
[Date "2019.05.31"]
[Round "4.2"]
[White "Tran, Alva Ling"]
[Black "Willinger, Tim"]
[Result "0-1"]
[ECO "B26"]
[WhiteElo "1616"]
[BlackElo "2073"]
[Annotator "NA"]
[PlyCount "90"]
[EventDate "2019.05.29"]
[EventType "swiss"]
[EventCountry "SWE"]
[SourceTitle "playchess.com"]
[Source "ChessBase"]
[SourceQuality "1"]
[TimeControl "40/5400+30:1800+30"]

1. e4 {[%emt 0:00:00]} c5 {[%emt 0:00:00]} 2. Nc3 {[%emt 0:00:00]} Nc6 {[%emt 0:00:00]} 3. g3 {[%emt 0:00:00]} g6 {[%emt 0:00:00]} 4. Bg2 {[%emt 0:00:01]} Bg7 {[%emt 0:00:00]} 5. d3 {[%emt 0:00:31]} d6 {[%emt 0:00:00]} 6. Nge2 {[%emt 0:00:20]} e5 {[%emt 0:00:00]} 7. O-O {[%emt 0:01:15]} Nge7 {[%emt 0:00:05]} 8. Be3 {[%emt 0:01:34]} O-O {[%emt 0:00:11]} 9. Qd2 {[%emt 0:00:58]} Nd4 {[%emt 0:00:25]} 10. f4 {[%emt 0:02:38]} Be6 {[%emt 0:01:24]} 11. h3 {[%emt 0:02:42] B26: Closed Sicilian: 3 g3, lines with early Be3} (11. Rf2 Qd7 12. Raf1 f6 13. Nd5 Nxd5 14. exd5 Nxe2+ 15. Rxe2 Bg4 16. Ree1 exf4 17. Bxf4 Rae8 18. d4 g5 19. Be3 b6 20. dxc5 dxc5 {1-0 (36) Bachmann,A (2621)-Perez Ponsa,F (2554) Buenos Aires 2018}) 11... Qd7 {[%emt 0:01:28]} 12. g4 {[%emt 0:03:37]} Nxe2+ {[%emt 0:01:24]} 13. Qxe2 {[%emt 0:04:21]} exf4 {[%emt 0:01:11]} 14. Bxf4 {[%emt 0:00:31]} Rae8 {[%emt 0:10:53]} 15. Rae1 {[%emt 0:11:31]} Nc6 {[%emt 0:04:26]} 16. Qd2 {[%emt 0:06:19]} Qd8 $146 {[%emt 0:03:02]} ({Predecessor:} 16... Ne5 17. Bh6 Bxh6 18. Qxh6 f6 {0-1 (33) Hohner,K (2030)-Bogdanovich,G (2365) Erlangen 2002}) 17. Bh6 {[%emt 0:09:55]} Qb6 {[%emt 0:04:53]} 18. Bxg7 {[%emt 0:01:08]} Kxg7 {[%emt 0:00:21]} 19. b3 {[%emt 0:06:04]} Qb4 {[%emt 0:04:51]} 20. Rf2 {[%emt 0:06:19]} f6 {[%emt 0:03:15]} 21. a3 {[%emt 0:08:00]} Qb6 {[%emt 0:09:54]} 22. Ne2 {[%emt 0:03:33]} Nd4 {[%emt 0:06:51]} 23. Nxd4 {[%emt 0:05:13]} cxd4 {[%emt 0:00:10]} 24. Qb4 {[%emt 0:00:39]} Qxb4 {[%emt 0:03:21]} 25. axb4 {[%emt 0:00:17]} Rc8 {[%emt 0:06:31]} 26. b5 {[%emt 0:03:46]} b6 {[%emt 0:01:00]} 27. Ra1 {[%emt 0:01:05]} Rc7 {[%emt 0:00:09]} 28. Ra4 {[%emt 0:05:05]} Rfc8 {[%emt 0:02:42]} 29. Rxd4 {[%emt 0:00:54]} Rxc2 {[%emt 0:00:09]} 30. Rxc2 {[%emt 0:00:39]} Rxc2 {[%emt 0:00:03]} 31. Rxd6 {[%emt 0:00:11]} Bxb3 {[%emt 0:10:14]} 32. Rd7+ {[%emt 0:01:05]} Kh6 {[%emt 0:00:10]} 33. Rxa7 {[%emt 0:02:14]} Rd2 {[%emt 0:06:46]} 34. Rd7 {[%emt 0:05:31]} Kg5 {[%emt 0:02:21]} (34... Bc4 $11 {keeps the balance.}) 35. d4 {[%emt 0:02:14]} (35. Bf1 $14) 35... Kf4 {[%emt 0:01:28]} 36. d5 {[%emt 0:00:45]} Kg3 {[%emt 0:02:51]} 37. Bf1 {[%emt 0:02:45]} Rd1 {[%emt 0:04:40]} 38. Rc7 $1 {[%emt 0:01:41]} Ba4 {[%emt 0:00:28]} 39. Rc3+ $1 {[%emt 0:00:54]} Kf4 {[%emt 0:01:38]} 40. Rd3 $2 {[%emt 0:02:32] [#]} (40. Kf2 $11) 40... Rxf1+ $1 {[%emt 0:04:26]} 41. Kxf1 {[%emt 0:03:40]} Bxb5 {[%emt 0:00:00]} 42. Ke2 {[%emt 0:04:27]} Kxe4 {[%emt 0:00:04]} 43. d6 {[%emt 0:01:54]} Bxd3+ {[%emt 0:00:06]} 44. Kd2 {[%emt 0:00:09]} Bb5 {[%emt 0:00:07]} 45. Kc3 {[%emt 0:00:21]} Kd5 {[%emt 0:00:27]} 0-1